bitfinex/quotes_ETHUSD_20250814
["timestamp","ask_amount","ask_price","bid_price","bid_amount"]
[1755178409154,0.55,4540.5,4540.3,4.571]
[1755178409364,0.55,4540.3,4539.8,0.001]
[1755178409568,2.20261764,4540.1,4539.8,0.001]
[1755178409871,2.75269168,4539.9,4539.8,0.001]
[1755178410068,3.05991108,4539.9,4539.8,0.001]
[1755178410393,4.559,4542.9,4539.8,2.8135]
[1755178410545,0.1104,4540.3,4539.9,0.28135]
[1755178410753,2.20269168,4539.9,4539.8,0.001]
[1755178410951,0.1104,4540.0,4539.8,0.001]
[1755178411249,2.20269168,4539.9,4539.8,0.001]
[1755178411477,2.75269168,4539.9,4539.8,0.001]
[1755178412791,2.75269168,4539.9,4539.8,0.0018]
[1755178412994,2.20269168,4539.9,4539.8,0.0018]
[1755178413569,2.75269168,4539.9,4539.8,0.0018]
[1755178413806,5.78022532,4539.9,4539.8,1e-08]
[1755178414110,5.7529343,4539.4,4539.3,1e-08]
[1755178414618,0.55,4539.2,4538.8,1e-08]
[1755178414915,3.55,4538.3,4535.3,2.8125]
[1755178415076,2.75429396,4536.6,4535.3,2.8125]
[1755178415281,0.55,4536.5,4535.3,2.8125]
[1755178415466,0.55,4537.9,4535.4,0.4591]
[1755178415691,2.75366248,4537.9,4535.4,0.4591]
[1755178416010,20.07541961,4538.9,4535.5,2.3534]
[1755178416192,2.20423505,4536.8,4535.7,3.0]
[1755178416379,2.20351681,4538.2,4535.7,3.0]
[1755178416380,0.02754456,4538.1,4535.7,3.0]
[1755178416585,2.20288578,4539.5,4535.8,3.84645]
[1755178416786,0.0989,4540.4,4535.9,5.8125]
[1755178416984,0.02753122,4540.3,4536.1,3.0]
[1755178417233,20.07541961,4539.6,4536.3,3.0]
[1755178417441,3.0,4538.1,4536.2,2.8125]
[1755178417597,0.55,4537.9,4535.4,4.9821]
[1755178417928,0.55,4537.3,4535.4,4.9821]
[1755178418229,4.523,4538.1,4535.4,0.4591]
[1755178418429,2.20432941,4536.6,4535.5,7.35554828]
[1755178418633,3.0,4538.2,4535.6,5.83454779]
[1755178418909,2.2029343,4539.4,4535.8,3.0]
[1755178419108,2.20303137,4539.2,4536.2,3.0]
[1755178419313,0.19795353,4539.7,4536.5,0.55]
[1755178419499,0.22548475,4540.3,4536.9,2.7541482]
[1755178419697,0.19795353,4540.8,4537.1,3.0]
[1755178419996,0.19795353,4540.8,4537.0,5.83454099]
[1755178419997,0.02952758,4540.9,4538.9,2.20313076]
[1755178420195,2.2023036,4540.7,4538.9,0.4591]
[1755178420381,0.02952758,4540.9,4538.9,0.4591]
[1755178420382,0.22548293,4540.6,4538.9,0.4591]
[1755178420587,0.19795353,4540.5,4538.8,2.3534]
[1755178420784,0.22548414,4540.4,4538.8,2.3534]
[1755178420984,2.20317698,4538.9,4538.8,2.3534]
[1755178421176,2.20322552,4538.8,4538.7,4.506]
[1755178421571,2.20315007,4539.0,4537.9,2.3534]
[1755178421783,0.55,4538.5,4537.4,4.9621]
[1755178422015,0.55,4538.3,4536.1,2.3534]
[1755178422324,0.55,4538.7,4536.1,2.3534]
[1755178422325,2.43015596,4538.2,4536.1,6.8544]
[1755178422630,0.55,4537.9,4536.1,6.8534]
[1755178422782,2.20435445,4536.5,4536.1,6.8534]
[1755178423118,0.55,4537.3,4536.2,2.8125]
[1755178423318,0.55,4537.3,4536.1,4.5]
[1755178423319,0.22684669,4537.2,4536.0,4.493]
[1755178423612,0.1104,4536.3,4536.1,2.8125]
[1755178423818,0.1104,4536.4,4536.2,2.8125]
[1755178424017,0.22668452,4539.2,4536.3,2.8125]
[1755178424189,0.1104,4536.5,4536.2,4.489]
[1755178424707,3.0,4538.2,4536.2,4.489]
[1755178424708,0.1104,4536.7,4536.3,2.8125]
[1755178424908,0.1104,4536.7,4536.2,4.489]
[1755178424909,0.1104,4536.7,4536.4,2.8125]
[1755178425080,0.19916142,4537.7,4536.6,2.20429396]
[1755178425285,2.20273441,4539.9,4536.5,3.56469342]
[1755178425286,0.1104,4537.5,4536.8,3.1104]
[1755178425606,2.20291344,4539.5,4537.1,2.20405104]
[1755178425778,0.19929865,4539.4,4538.2,2.20349498]
[1755178425980,0.19929865,4539.3,4538.3,2.8125]
[1755178426235,2.20422219,4540.9,4538.3,2.8125]
[1755178426236,2.2030799,4539.1,4538.3,7.3085]
[1755178426442,2.20344668,4538.4,4537.7,4.492]
[1755178426614,2.20352153,4538.2,4537.7,4.492]
[1755178426801,0.19929865,4538.1,4537.8,2.8125]
[1755178427001,0.19929865,4538.0,4537.9,2.8125]
[1755178427706,2.20380523,4537.7,4537.2,5.283]
[1755178428005,0.19929865,4537.6,4537.3,4.487]
[1755178428209,0.19929865,4537.5,4537.3,4.487]
[1755178428413,0.55,4538.7,4537.4,2.8125]
[1755178428738,2.2034197,4538.4,4537.4,2.8125]
[1755178428937,2.20395389,4537.3,4537.2,5.283]
[1755178429095,2.75409962,4537.0,4535.6,2.8125]
[1755178429290,3.22675971,4536.9,4535.7,4.483]
[1755178429495,0.1990839,4536.8,4535.8,2.8125]
[1755178429737,0.1990839,4536.7,4535.9,3.0]
[1755178429946,2.20366542,4537.9,4536.0,1.02955]
[1755178429947,0.19908837,4536.6,4536.0,1.02955]
[1755178430130,0.1676705,4539.8,4535.3,0.660754]
[1755178430131,3.0,4537.1,4535.3,0.660754]
[1755178430440,2.75487718,4535.4,4535.3,0.660754]
[1755178430641,5.9537424,4535.4,4535.3,1e-08]
[1755178430938,2.20497442,4535.2,4535.1,1e-08]
[1755178431107,2.40383964,4535.2,4535.1,1e-08]
[1755178431297,2.98140182,4535.2,4535.1,1e-08]
[1755178431499,5.95383964,4535.2,4535.1,1e-08]
[1755178431698,6.17701468,4535.2,4535.1,1e-08]
[1755178431919,5.95383964,4535.2,4535.1,1e-08]
[1755178433030,5.75497442,4535.2,4535.1,1e-08]
[1755178433914,5.20497442,4535.2,4535.1,1e-08]
[1755178434221,2.20443631,4536.4,4535.1,2.28850001]
[1755178434419,4.458,4536.9,4535.1,2.28850001]
[1755178434420,2.20497442,4535.2,4535.1,6.74350001]
[1755178434621,2.20494593,4535.3,4535.1,7.18520001]
[1755178435017,0.55,4535.3,4535.1,1e-08]
[1755178435217,2.75497442,4535.2,4535.1,1e-08]
[1755178435420,2.86537442,4535.2,4535.1,1e-08]
[1755178435610,5.8929366,4535.2,4535.1,1e-08]
[1755178435828,6.06435141,4535.2,4535.1,1e-08]
[1755178436348,2.20584991,4533.4,4533.3,8.0132]
[1755178436724,0.1104,4533.4,4533.3,8.0132]
[1755178436925,0.1104,4533.5,4533.3,8.0132]
[1755178437101,2.20621836,4532.7,4532.4,0.4417]
[1755178437308,0.1104,4533.2,4532.7,2.20618766]
[1755178437501,0.1104,4533.2,4532.8,4.93630666]
[1755178437701,0.1104,4533.2,4532.9,2.7302]
[1755178437912,0.1104,4533.5,4533.0,2.7302]
[1755178438113,0.1104,4533.5,4533.1,2.7302]
[1755178438313,0.55,4533.4,4532.3,2.2885]
[1755178438512,2.20633659,4532.4,4532.3,2.7302]
[1755178438800,2.20597465,4533.2,4532.3,2.7302]
[1755178438801,0.55,4533.2,4532.3,7.1662]
[1755178439000,2.20599962,4533.1,4532.3,7.1662]
[1755178439247,0.55,4533.8,4532.3,2.7302]
[1755178439397,0.55,4533.5,4532.2,4.431]
[1755178439597,2.20638527,4532.3,4532.2,4.431]
[1755178440026,2.20638527,4532.3,4531.7,0.4417]
[1755178440232,0.55,4533.5,4531.7,0.4417]
[1755178440233,0.1,4537.2,4532.2,4.43]
[1755178440416,0.1,4537.2,4532.4,5.20633659]
[1755178440417,0.19913617,4535.0,4532.4,5.20633659]
[1755178440737,5.286,4538.7,4535.0,2.20505212]
[1755178440738,0.19917769,4536.9,4535.0,2.20505212]
[1755178440942,2.20384109,4537.6,4535.1,7.1582]
[1755178440943,0.19917769,4536.8,4535.1,7.1582]
[1755178441101,2.20463295,4536.0,4535.2,7.1572]
[1755178441301,2.20493099,4535.3,4534.8,5.288]
[1755178441535,0.099,4537.4,4534.9,2.7302]
[1755178441739,0.22696263,4537.3,4534.8,5.288]
[1755178441925,0.19941321,4537.2,4534.8,5.288]
[1755178442129,20.07541961,4537.7,4534.8,5.288]
[1755178442130,0.55,4535.5,4534.8,5.288]
[1755178442447,0.19941321,4535.4,4534.8,5.288]
[1755178442606,0.19941321,4536.9,4534.9,3.9963712]
[1755178442939,0.22696566,4536.8,4534.9,7.1522]
[1755178443141,2.20475595,4535.7,4534.9,7.1522]
[1755178443357,0.19952457,4535.6,4535.0,2.7302]
[1755178443504,0.8601,4538.8,4535.1,3.46375023]
[1755178443709,2.20394808,4537.4,4535.3,3.0]
[1755178443907,0.19957837,4537.3,4535.5,5.20482857]
[1755178444151,0.19957837,4537.3,4535.4,3.32747379]
[1755178444152,0.19957837,4537.2,4535.7,3.0]
[1755178444354,0.19957837,4537.1,4537.0,2.20409962]
[1755178444524,0.19957837,4537.1,4537.0,12.35329962]
[1755178444909,0.19957837,4537.1,4537.0,10.1452]
[1755178445209,0.19957837,4537.1,4537.0,12.34929962]
[1755178445410,0.19957837,4537.1,4537.0,7.1452]
[1755178445655,0.19957837,4537.1,4537.0,2.7302]
[1755178445947,2.40362941,4537.1,4537.0,4.41]
[1755178446155,2.95362941,4537.1,4537.0,4.41]
[1755178446356,0.19957837,4537.1,4537.0,4.41]
[1755178446558,0.19957837,4537.1,4537.0,4.407]
[1755178446766,2.40362941,4537.1,4537.0,4.407]
[1755178446917,2.40362941,4537.1,4536.4,4.403]
[1755178446918,0.55,4537.0,4536.4,4.403]
[1755178447220,0.55,4538.0,4535.8,4.403]
[1755178447221,0.55,4536.8,4535.8,4.403]
[1755178447415,2.75473135,4535.7,4535.6,4.402]
[1755178447652,2.95430972,4535.7,4535.6,4.402]
[1755178447869,2.40430972,4535.7,4535.6,4.402]
[1755178448018,0.55,4535.4,4535.2,4.398]
[1755178448378,2.20512028,4534.9,4534.8,5.2888]
[1755178448530,3.06509865,4534.9,4534.8,9.6848]
[1755178448733,3.06509865,4534.9,4534.8,4.3968]
[1755178448930,2.86552028,4534.9,4534.8,4.3968]
[1755178449140,3.06528342,4534.9,4534.8,4.3968]
[1755178449456,3.06528342,4534.9,4534.8,0.0008]
[1755178449664,2.75516891,4534.8,4532.8,0.4417]
[1755178449822,0.1104,4533.2,4533.1,4.386]
[1755178450216,0.1104,4533.2,4533.1,7.1162]
[1755178450418,2.20599589,4533.1,4532.7,0.4417]
[1755178450714,2.20628792,4532.5,4532.4,0.1104]
[1755178450955,2.20655166,4532.0,4531.8,2.7312]
[1755178451264,2.20642204,4532.3,4532.1,4.382]
[1755178451468,0.1998547,4532.2,4532.1,4.382]
[1755178451666,2.75658002,4531.9,4531.8,0.001]
[1755178451961,2.98401697,4531.9,4531.8,0.001]
[1755178452171,5.98401697,4531.9,4531.8,1e-08]
[1755178452337,5.98401697,4531.9,4530.0,2.2885]
[1755178452338,0.55,4531.7,4529.0,0.4417]
[1755178452537,0.55,4530.1,4529.0,0.4417]
[1755178452778,0.02758407,4531.6,4529.1,4.387]
[1755178452923,0.0275859,4531.3,4529.0,0.4425]
[1755178453120,0.0275859,4531.3,4529.0,0.0008]
[1755178453121,5.2069209,4531.2,4529.0,0.0008]
[1755178453359,0.55,4530.2,4529.1,4.387]
[1755178453620,3.0,4530.5,4528.7,2.7302]
[1755178453844,4.386,4531.9,4528.8,4.386]
[1755178453845,3.55,4531.0,4528.8,4.386]
[1755178454044,0.55,4530.4,4528.8,4.386]
[1755178454459,0.55,4530.1,4528.7,2.7302]
[1755178454666,2.20800737,4529.0,4528.8,4.382]
[1755178454850,2.20800564,4529.0,4528.8,4.382]
[1755178455162,0.55,4529.2,4527.7,0.4417]
[1755178455469,0.55,4529.2,4527.2,2.2885]
[1755178455470,2.20845357,4528.1,4527.2,2.2885]
[1755178455774,2.20907887,4526.8,4526.4,5.288]
[1755178455924,0.02759052,4528.0,4526.5,2.7302]
[1755178455925,2.20893811,4527.1,4526.5,2.7302]
[1755178456124,2.20890555,4527.2,4526.6,4.377]
[1755178456359,0.55,4527.8,4526.6,4.377]
[1755178456360,2.20883159,4527.3,4526.6,4.377]
[1755178456865,0.55,4529.1,4526.7,2.23120594]
[1755178457038,0.02759052,4529.0,4526.7,5.7302]
[1755178457239,2.20880393,4527.4,4526.4,5.288]
[1755178457441,0.55,4527.8,4526.4,5.288]
[1755178457736,4.369,4529.9,4526.4,5.288]
[1755178457737,3.0,4529.7,4526.6,3.0]
[1755178457961,0.55,4528.9,4526.7,4.26912]
[1755178458260,0.55,4528.7,4526.8,7.368]
[1755178458428,0.55,4528.7,4526.9,0.46379017]
[1755178458624,0.2015,4531.6,4527.1,3.0]
[1755178458828,0.19908571,4531.5,4527.3,3.0]
[1755178459061,3.0,4531.1,4527.4,2.7302]
[1755178459230,2.20851614,4528.0,4527.4,2.7302]
[1755178459435,2.20871654,4527.6,4527.4,2.7302]
[1755178459625,0.55,4528.5,4527.5,7.1092]
[1755178459626,2.75826702,4528.5,4527.5,7.1092]
[1755178459826,0.55,4529.2,4527.6,4.379]
[1755178460061,0.55,4529.0,4527.5,2.7302]
[1755178460264,0.55,4527.8,4526.7,2.7302]
[1755178460465,0.55,4527.6,4526.8,4.377]
[1755178460668,0.55,4528.2,4526.8,4.377]
[1755178460823,2.2077881,4529.5,4526.9,5.75229017]
[1755178461028,0.1104,4527.8,4527.1,3.0]
[1755178461260,0.19910755,4529.3,4527.4,3.0]
[1755178461483,0.60334695,4532.3,4527.6,3.0]
[1755178461686,0.19924026,4532.2,4527.8,3.0]
[1755178461849,0.19924026,4532.1,4528.0,3.0]
[1755178462049,0.19924026,4532.0,4528.3,0.55]
[1755178462252,0.19924026,4531.9,4528.5,3.0]
[1755178462445,0.19927359,4531.8,4528.7,3.0]
[1755178462686,0.19927398,4532.6,4531.4,2.20677568]
[1755178462886,0.19927398,4532.5,4531.5,6.591762]
[1755178463086,0.19927398,4533.2,4531.5,4.385]
[1755178463387,0.73566278,4535.7,4531.5,4.385]
[1755178463388,0.2015,4534.8,4532.8,2.20613211]
[1755178463711,0.2015,4534.8,4532.9,4.38]
[1755178463850,0.02756521,4534.7,4533.0,4.378]
[1755178464055,2.20536239,4534.5,4532.2,2.283]
[1755178464306,0.02756704,4534.4,4532.3,7.376]
[1755178464490,0.22682102,4534.9,4532.4,1.00991]
[1755178464692,2.20541208,4534.3,4532.2,2.283]
[1755178464869,2.20541208,4534.3,4532.1,0.4401]
[1755178464870,2.20560665,4533.9,4532.5,4.372]
[1755178465192,0.002,4532.3,4532.0,4.369]
[1755178465490,0.002,4532.3,4532.2,0.4401]
[1755178466087,0.002,4532.3,4531.5,2.20675955]
[1755178466088,0.002,4532.3,4531.4,0.0008]
[1755178466291,0.002,4532.3,4531.5,4.365]
[1755178466594,0.002,4532.3,4532.2,2.20643396]
[1755178466889,0.002,4532.3,4532.2,2.7231]
[1755178467096,0.002,4532.3,4532.2,7.92953396]
[1755178467252,2.94043812,4535.7,4532.2,7.92953396]
[1755178467253,0.19903554,4535.0,4532.4,3.0]
[1755178467452,0.19903554,4535.0,4531.6,2.68729677]
[1755178467453,2.20554823,4534.1,4532.5,7.0901]
[1755178467648,2.20537599,4534.4,4533.1,2.20598319]
[1755178467854,0.02756765,4534.3,4533.2,4.363]
[1755178468061,0.22660075,4534.7,4533.2,4.363]
[1755178468295,0.55,4534.3,4533.2,4.363]
[1755178468587,0.55,4534.0,4533.2,4.363]
[1755178468809,2.40443451,4534.4,4533.2,4.363]
[1755178469005,0.02756765,4534.3,4533.2,4.363]
[1755178469404,2.20589857,4533.3,4533.2,4.363]
[1755178469969,2.75589857,4533.3,4533.2,4.363]
[1755178470198,0.19903554,4533.3,4533.2,7.0861]
[1755178470387,0.19922509,4534.0,4533.2,7.0861]
[1755178470703,2.20560665,4533.9,4533.2,7.0861]
[1755178471013,0.55,4534.2,4533.2,7.0861]
[1755178471312,0.55,4533.2,4529.2,2.20787008]
[1755178471512,0.02757494,4533.1,4532.2,4.34]
[1755178471680,2.2066774,4531.7,4531.6,4.34]
[1755178472082,3.0,4533.0,4531.6,4.34]
[1755178472271,2.20680225,4531.5,4531.0,4.338]
[1755178472620,0.55,4531.9,4531.0,4.338]
[1755178472825,2.31736961,4531.1,4531.0,4.338]
[1755178472983,2.20626702,4530.9,4529.5,0.4401]
[1755178473305,0.02758651,4531.2,4529.9,4.338]
[1755178473306,2.20750551,4530.0,4529.9,4.338]
[1755178473468,0.1104,4530.0,4529.9,4.338]
[1755178473928,0.1104,4530.0,4529.2,0.1104]
[1755178474088,0.1104,4529.7,4529.3,4.338]
[1755178474283,0.1104,4529.7,4529.4,2.7231]
[1755178474521,3.0,4531.8,4529.3,7.26297788]
[1755178474522,2.20755312,4530.0,4529.5,2.7231]
[1755178474815,3.2015,4532.3,4529.6,2.7231]
[1755178474816,2.20682349,4531.4,4529.6,2.7231]
[1755178475028,0.1104,4529.7,4529.0,0.1104]
[1755178475228,2.31805172,4529.7,4529.6,4.338]
[1755178475789,2.20774919,4529.5,4529.4,4.338]
[1755178476321,2.20804168,4528.9,4528.7,2.283]
[1755178476535,0.1104,4528.9,4528.3,5.29]
[1755178476721,2.23547944,4529.3,4528.3,5.29]
[1755178476922,2.31868548,4528.4,4528.3,5.29]
[1755178477244,0.1104,4528.7,4528.3,12.3521]
[1755178477397,2.20828548,4528.4,4528.3,8.0131]
[1755178477602,2.31868548,4528.4,4528.3,9.629]
[1755178478138,0.1104,4528.4,4528.3,9.629]
[1755178478561,2.20701831,4531.0,4528.3,13.315]
[1755178478703,2.20787039,4529.3,4528.4,2.20828548]
[1755178478903,2.20719623,4530.7,4528.3,13.315]
[1755178479256,2.20726189,4530.5,4528.3,5.29]
[1755178479459,2.20738177,4530.3,4528.6,2.20818796]
[1755178479599,0.2015,4532.1,4528.8,3.0]
[1755178479798,0.2015,4532.1,4528.7,2.74518139]
[1755178479799,2.20753168,4530.0,4529.0,3.0]
[1755178480038,0.002,4532.8,4529.1,7.0621]
[1755178480243,0.2015,4532.5,4529.3,3.0]
[1755178480561,0.20033645,4532.6,4529.6,3.0]
[1755178480722,0.002,4532.8,4532.0,2.20652015]
[1755178481052,0.002,4532.8,4532.1,4.339]
[1755178481201,0.002,4532.8,4531.8,2.7231]
[1755178481202,0.002,4532.8,4532.2,4.36106433]
[1755178481400,0.002,4532.8,4532.7,2.20619057]
[1755178481647,0.20041207,4534.4,4533.7,2.20567737]
[1755178481798,0.20041207,4534.4,4533.4,2.20583661]
[1755178481799,2.20516891,4534.8,4533.8,4.339]
[1755178482005,0.22797242,4535.5,4533.8,4.339]
[1755178482243,2.20457844,4536.1,4533.8,4.339]
[1755178482244,0.20041207,4536.0,4533.9,0.02205606]
[1755178482416,0.20041207,4536.2,4534.0,0.02205558]
[1755178482598,5.4049535,4536.1,4533.8,4.339]
[1755178482920,2.20463414,4535.9,4533.4,2.7231]
[1755178483124,2.2056699,4533.8,4533.5,4.338]
[1755178483308,2.20565602,4533.8,4532.7,0.4401]
[1755178483502,0.55,4533.9,4532.8,4.338]
[1755178483701,0.02756825,4534.2,4532.8,4.338]
[1755178483904,0.55,4533.8,4532.8,4.338]
[1755178484142,0.55,4534.2,4532.8,4.338]
[1755178484364,2.20584776,4533.5,4532.9,4.338]
[1755178484707,3.0,4534.6,4532.9,4.338]
[1755178484906,2.2057203,4533.7,4532.9,4.78915699]
[1755178485211,0.19984464,4534.3,4533.0,4.338]
[1755178485414,0.19984464,4534.3,4532.3,0.43610643]
[1755178485415,2.20485795,4535.5,4533.1,7.08315995]
[1755178485612,0.22740195,4536.0,4534.0,2.20555469]
[1755178485815,0.22740195,4536.0,4534.1,4.337]
[1755178485816,5.20468274,4535.8,4534.1,4.337]
[1755178486026,2.20503947,4535.1,4534.1,4.337]
[1755178486251,0.19984464,4536.1,4534.1,4.337]
[1755178486405,2.20494437,4535.3,4534.3,2.20536788]
[1755178486602,2.20497888,4535.2,4534.3,2.20536788]
[1755178486841,3.0,4536.0,4534.2,0.4401]
[1755178486842,2.20493053,4535.3,4534.4,2.205353]
[1755178487002,2.20487244,4535.5,4534.5,2.283]
[1755178487203,0.73566278,4537.3,4534.5,2.55531]
[1755178487404,2.20419679,4536.8,4534.6,3.4401]
[1755178487606,0.02755185,4536.9,4534.6,3.4401]
[1755178487906,0.02755003,4537.2,4534.7,5.7231]
[1755178488106,0.002,4537.6,4534.9,3.0]
[1755178488354,0.0295476,4537.6,4535.0,8.06721517]
[1755178488550,2.20404438,4537.2,4535.1,4.336]
[1755178488844,0.1104,4535.6,4535.1,6.54102199]
[1755178489021,0.1104,4535.6,4535.2,2.7231]
[1755178489221,2.20370999,4537.9,4535.9,2.20462605]
[1755178489547,0.1104,4536.4,4536.1,2.20449319]
[1755178489746,0.1104,4536.4,4536.3,3.0]
[1755178489959,0.1104,4537.1,4536.4,0.1104]
[1755178490250,0.1104,4536.8,4536.3,5.7231]
[1755178490409,0.1104,4537.3,4536.8,2.20418874]
[1755178490608,0.002,4538.5,4536.8,2.20418874]
[1755178490609,0.1104,4537.5,4536.9,7.1685]
[1755178490837,0.002,4538.5,4537.0,0.02204099]
[1755178491156,0.002,4538.5,4538.4,2.2034197]
[1755178491312,0.002,4539.0,4538.7,2.20325363]
[1755178491515,0.002,4539.0,4538.9,5.20317698]
[1755178491755,2.20124491,4542.9,4538.9,4.51466315]
[1755178491953,3.0,4542.0,4539.1,3.0]
[1755178492114,2.2022031,4541.0,4539.1,3.0]
[1755178492314,2.20421855,4540.9,4539.4,2.20291553]
[1755178492545,0.002,4540.9,4539.3,3.0]
[1755178492746,2.20269902,4539.9,4539.4,4.333]
[1755178492947,0.002,4540.9,4539.5,2.8805]
[1755178493253,0.002,4540.9,4538.2,2.8805]
[1755178493552,0.002,4540.9,4537.1,2.75404989]
[1755178493553,2.20284619,4539.6,4538.6,2.20332261]
[1755178493861,0.002,4540.9,4538.8,3.0]
[1755178494016,2.2022551,4540.8,4538.9,0.02203176]
[1755178494219,2.2022551,4540.8,4539.0,3.0]
[1755178494446,0.002,4540.9,4539.2,3.0]
[1755178494754,2.20253975,4540.3,4539.4,3.0]
[1755178495058,2.2022551,4540.8,4539.6,3.0]
[1755178495217,2.20244896,4540.5,4539.6,3.0]
[1755178495554,2.2027402,4539.8,4539.7,4.33]
[1755178495856,2.20297137,4539.4,4538.8,2.8805]
[1755178496056,2.20258187,4540.2,4538.8,2.8805]
[1755178496258,4.43272173,4540.1,4538.8,2.8805]
[1755178496461,0.002,4540.9,4538.9,4.33]
[1755178496643,0.002,4540.9,4539.1,2.2030799]
[1755178496825,2.20262411,4540.1,4539.1,3.0]
[1755178497020,2.20246408,4540.4,4539.2,2.20301912]
[1755178497221,0.002,4540.9,4539.3,3.45202982]
[1755178497551,0.002,4540.9,4539.5,3.0]
[1755178497754,2.2022551,4540.8,4539.8,2.20273367]
[1755178497932,0.002,4540.9,4539.9,2.20268999]
[1755178498131,2.20230829,4540.7,4539.7,5.20274443]
[1755178498358,0.002,4540.9,4540.1,3.0]
[1755178498547,0.002,4540.9,4540.3,3.0]
[1755178498754,0.002,4540.9,4540.5,3.0]
[1755178498916,0.002,4540.9,4540.6,4.758]
[1755178499122,0.002,4540.9,4540.7,2.8805]
[1755178499321,0.002,4540.9,4540.6,4.328]
[1755178499748,0.002,4540.9,4540.6,7.2085]
[1755178499931,0.002,4540.9,4540.7,2.8805]
[1755178500131,0.002,4540.9,4540.8,2.90252255]
[1755178500334,2.20421506,4540.9,4540.8,4.328]
[1755178500534,2.20337115,4538.5,4538.0,2.8805]
[1755178500734,0.55,4539.9,4537.3,2.8805]
[1755178500935,0.1104,4538.7,4537.4,4.327]
[1755178501160,0.1104,4537.9,4537.5,4.327]
[1755178501363,0.1104,4537.9,4537.5,7.2075]
[1755178501567,0.2055,4540.8,4537.6,2.8805]
[1755178501881,0.002,4540.9,4537.8,3.0]
[1755178502028,0.1104,4540.4,4539.8,0.1104]
[1755178502224,2.20259465,4540.1,4540.0,3.0]
[1755178502466,0.002,4540.9,4540.0,3.0]
[1755178502664,0.0012,4540.9,4540.0,3.0]
[1755178502975,2.20259465,4540.1,4540.0,0.0008]
[1755178503270,0.1104,4540.4,4540.0,0.0008]
[1755178503473,0.0012,4540.9,4539.4,2.4505]
[1755178503766,0.0012,4540.9,4540.3,0.1104]
[1755178503967,0.0012,4540.9,4540.5,3.0]
[1755178504328,0.0012,4540.9,4540.7,3.0]
[1755178504630,0.0012,4540.9,4539.8,3.43]
[1755178504823,2.20269168,4539.9,4539.8,0.43]
[1755178505050,2.20269168,4539.9,4539.8,4.325]
[1755178505264,0.002,4540.7,4539.8,4.325]
[1755178505467,0.002,4540.7,4539.8,7.2055]
[1755178505633,2.20240061,4540.5,4539.9,4.325]
[1755178505823,0.02753061,4540.4,4539.0,0.43]
[1755178506031,2.20312844,4539.0,4538.9,5.283]
[1755178506225,2.20312844,4539.0,4538.9,9.608]
[1755178506856,2.20266802,4540.0,4538.9,9.608]
[1755178507163,0.55,4540.2,4538.9,12.608]
[1755178507370,2.20330234,4538.7,4537.1,2.4505]
[1755178507692,2.20429396,4536.6,4536.5,2.4505]
[1755178507827,2.20429396,4536.6,4535.8,0.43]
[1755178508029,0.02754517,4538.0,4535.9,4.324]
[1755178508265,2.75371104,4537.8,4535.8,0.43]
[1755178508480,2.20453693,4536.1,4536.0,4.323]
[1755178508775,3.0,4537.7,4536.0,4.323]
[1755178509078,2.20477996,4535.6,4535.5,5.282]
[1755178509375,2.20477996,4535.6,4535.5,9.605]
[1755178509728,0.55,4536.2,4533.8,0.43]
[1755178509980,2.20560665,4533.9,4533.8,0.43]
[1755178510128,0.55,4535.3,4532.8,0.001]
[1755178510328,2.20552289,4534.1,4532.9,3.767]
[1755178510556,2.20536205,4534.5,4532.9,3.767]
[1755178510557,0.55,4535.6,4533.0,2.8805]
[1755178510741,2.20453693,4536.1,4533.6,2.20574507]
[1755178510943,0.55,4535.5,4533.8,3.0]
[1755178511145,0.55,4535.6,4533.9,0.02205606]
[1755178511367,1.0756,4537.1,4534.0,3.90315561]
[1755178511551,2.20442726,4536.4,4534.2,3.0]
[1755178511866,2.20468274,4535.8,4534.2,3.0]
[1755178512066,2.20380818,4537.6,4534.2,3.0]
[1755178512067,3.0,4537.1,4534.3,0.43]
[1755178512268,2.20461494,4536.0,4534.3,0.43]
[1755178512471,2.20424537,4536.7,4534.3,0.43]
[1755178512768,2.20458486,4536.1,4534.3,0.43]
[1755178513073,2.20502008,4535.2,4534.5,3.0]
[1755178513230,0.2055,4538.2,4534.7,3.0]
[1755178513430,0.2055,4538.2,4535.7,2.20470663]
[1755178513431,2.20426258,4536.7,4535.7,2.20470663]
[1755178513635,2.20400979,4537.2,4535.9,3.0]
[1755178513876,3.0,4538.3,4536.1,3.0]
[1755178514034,2.2030322,4539.2,4536.1,3.0]
[1755178514035,0.2055,4539.8,4536.2,5.90254488]
[1755178514234,20.07541961,4541.3,4536.0,3.22492607]
[1755178514235,0.2055,4540.5,4536.6,0.55]
[1755178514468,0.2055,4540.5,4536.5,3.0]
[1755178514469,0.02753061,4540.4,4538.0,0.1104]
[1755178514634,0.1104,4538.9,4538.2,3.0]
[1755178515274,0.1104,4538.9,4538.1,4.323]
[1755178515570,0.002,4540.7,4538.2,5.91587516]
[1755178515775,0.002,4540.7,4538.3,3.0]
[1755178515975,0.002,4540.7,4539.4,2.2029343]
[1755178516137,0.002,4540.7,4539.5,3.0]
[1755178517252,0.002,4540.7,4539.3,4.322]
[1755178517453,0.55,4540.5,4539.3,4.322]
[1755178517653,0.35795288,4540.5,4539.3,4.322]
[1755178517878,0.02952879,4540.7,4539.3,4.322]
[1755178518197,0.002,4540.7,4539.4,3.0]
[1755178518351,0.002,4540.7,4539.6,2.20283725]
[1755178518548,0.002,4540.7,4539.5,3.43]